[Event "Titled Tuesday Blitz July 26 Late 2022"]
[White "Reprintsev, Alexander"]
[Black "Rustemov, Alexander"]
[WhiteFideId "14100541"]
[BlackFideId "4119002"]
[WhiteElo "2108"]
[BlackElo "2802"]
[Result "0-1"]
[Round "02"]
[TimeControl "180+1"]
[Date "2022.07.26"]
[WhiteClock "0:00:11"]
[BlackClock "0:01:12"]

1. e4 {[%clk 0:01:57]}  e6 {[%clk 0:02:59]} 2. Qe2 {[%clk 0:01:56]}  c5 {[%clk 0:02:58]} 3. b3 {[%clk 0:01:56]}  Nc6 {[%clk 0:02:57]} 4. Bb2 {[%clk 0:01:56]}  Nf6 {[%clk 0:02:47]} 5. e5 {[%clk 0:01:55]}  Nd5 {[%clk 0:02:46]} 6. Nf3 {[%clk 0:01:56]}  Be7 {[%clk 0:02:45]} 7. c4 {[%clk 0:01:56]}  Nf4 {[%clk 0:02:39]} 8. Qe3 {[%clk 0:01:50]}  Ng6 {[%clk 0:02:39]} 9. Nc3 {[%clk 0:01:46]}  O-O {[%clk 0:02:36]} 10. h4 {[%clk 0:01:14]}  f6 {[%clk 0:02:34]} 11. exf6 {[%clk 0:01:14]}  Bxf6 {[%clk 0:02:34]} 12. h5 {[%clk 0:01:14]}  Nge5 {[%clk 0:02:33]} 13. Nxe5 {[%clk 0:01:13]}  Bxe5 {[%clk 0:02:31]} 14. O-O-O {[%clk 0:00:53]}  Bd4 {[%clk 0:02:28]} 15. Qe4 {[%clk 0:00:53]}  Qf6 {[%clk 0:02:13]} 16. Bd3 {[%clk 0:00:49]}  Qf5 {[%clk 0:02:13]} 17. f3 {[%clk 0:00:43]}  Qxe4 {[%clk 0:02:11]} 18. Bxe4 {[%clk 0:00:41]}  d6 {[%clk 0:02:02]} 19. Bxc6 {[%clk 0:00:39]}  bxc6 {[%clk 0:02:02]} 20. Ne2 {[%clk 0:00:40]}  Bxb2+ {[%clk 0:01:51]} 21. Kxb2 {[%clk 0:00:40]}  e5 {[%clk 0:01:51]} 22. Nc3 {[%clk 0:00:35]}  Bf5 {[%clk 0:01:50]} 23. d3 {[%clk 0:00:28]}  h6 {[%clk 0:01:49]} 24. Ne4 {[%clk 0:00:26]}  Rad8 {[%clk 0:01:45]} 25. Kc3 {[%clk 0:00:25]}  a5 {[%clk 0:01:44]} 26. a3 {[%clk 0:00:25]}  Kf7 {[%clk 0:01:38]} 27. Rb1 {[%clk 0:00:25]}  Ke6 {[%clk 0:01:30]} 28. b4 {[%clk 0:00:25]}  axb4+ {[%clk 0:01:30]} 29. axb4 {[%clk 0:00:24]}  cxb4+ {[%clk 0:01:29]} 30. Rxb4 {[%clk 0:00:25]}  Ra8 {[%clk 0:01:29]} 31. Rhb1 {[%clk 0:00:24]}  Ra3+ {[%clk 0:01:24]} 32. R4b3 {[%clk 0:00:24]}  Rfa8 {[%clk 0:01:23]} 33. g4 {[%clk 0:00:20]}  Bh7 {[%clk 0:01:21]} 34. Rb2 {[%clk 0:00:19]}  d5 {[%clk 0:01:21]} 35. cxd5+ {[%clk 0:00:18]}  cxd5 {[%clk 0:01:21]} 36. Nc5+ {[%clk 0:00:17]}  Kd6 {[%clk 0:01:21]} 37. Kb4 {[%clk 0:00:16]}  R3a7 {[%clk 0:01:15]} 38. d4 {[%clk 0:00:12]}  exd4 {[%clk 0:01:14]} 39. Kb5 {[%clk 0:00:11]}  Rb8+ {[%clk 0:01:12]} 0-1


[Site "https://www.chess.com"]

[Event "Titled Tuesday Blitz July 26 Late 2022"]
[White "Riehle, Marco"]
[Black "Ozer, Omer Faruk"]
[WhiteFideId "12904392"]
[BlackFideId "6354564"]
[WhiteElo "2462"]
[BlackElo "2050"]
[Result "1-0"]
[Round "02"]
[TimeControl "180+1"]
[Date "2022.07.26"]
[WhiteClock "0:01:00"]
[BlackClock "0:00:09"]

1. e4 {[%clk 0:03:00]}  c5 {[%clk 0:02:53]} 2. a3 {[%clk 0:03:00]}  d5 {[%clk 0:02:51]} 3. exd5 {[%clk 0:02:59]}  Nf6 {[%clk 0:02:52]} 4. Nf3 {[%clk 0:02:59]}  Nxd5 {[%clk 0:02:51]} 5. c4 {[%clk 0:02:59]}  Nf6 {[%clk 0:02:48]} 6. d4 {[%clk 0:03:00]}  cxd4 {[%clk 0:02:49]} 7. Qxd4 {[%clk 0:03:01]}  Qxd4 {[%clk 0:02:41]} 8. Nxd4 {[%clk 0:03:01]}  a6 {[%clk 0:02:41]} 9. Nc3 {[%clk 0:02:59]}  e6 {[%clk 0:02:39]} 10. Bf4 {[%clk 0:02:56]}  Bd7 {[%clk 0:02:38]} 11. O-O-O {[%clk 0:02:56]}  Nc6 {[%clk 0:02:38]} 12. Be2 {[%clk 0:02:54]}  Nxd4 {[%clk 0:02:36]} 13. Rxd4 {[%clk 0:02:55]}  Bc5 {[%clk 0:02:36]} 14. Rd2 {[%clk 0:02:54]}  Bc6 {[%clk 0:02:30]} 15. Bf3 {[%clk 0:02:51]}  Bxf3 {[%clk 0:02:25]} 16. gxf3 {[%clk 0:02:52]}  O-O {[%clk 0:02:24]} 17. Rhd1 {[%clk 0:02:44]}  Rfc8 {[%clk 0:02:24]} 18. Kc2 {[%clk 0:02:37]}  Bf8 {[%clk 0:02:19]} 19. Kb3 {[%clk 0:02:34]}  Rc6 {[%clk 0:01:42]} 20. Rd8 {[%clk 0:02:21]}  Rac8 {[%clk 0:01:42]} 21. Rxc8 {[%clk 0:02:20]}  Rxc8 {[%clk 0:01:42]} 22. Ne4 {[%clk 0:02:13]}  b5 {[%clk 0:01:17]} 23. Nxf6+ {[%clk 0:01:59]}  gxf6 {[%clk 0:01:16]} 24. cxb5 {[%clk 0:01:59]}  axb5 {[%clk 0:01:15]} 25. Rd7 {[%clk 0:01:46]}  Kg7 {[%clk 0:00:54]} 26. Be3 {[%clk 0:01:38]}  Bc5 {[%clk 0:00:52]} 27. Rb7 {[%clk 0:01:37]}  Bxe3 {[%clk 0:00:52]} 28. fxe3 {[%clk 0:01:38]}  Rc5 {[%clk 0:00:52]} 29. Kb4 {[%clk 0:01:37]}  Rc2 {[%clk 0:00:52]} 30. b3 {[%clk 0:01:36]}  Rxh2 {[%clk 0:00:51]} 31. Rxb5 {[%clk 0:01:36]}  Re2 {[%clk 0:00:50]} 32. a4 {[%clk 0:01:35]}  f5 {[%clk 0:00:48]} 33. a5 {[%clk 0:01:33]}  Ra2 {[%clk 0:00:47]} 34. Kc5 {[%clk 0:01:29]}  h5 {[%clk 0:00:46]} 35. Kb6 {[%clk 0:01:30]}  h4 {[%clk 0:00:46]} 36. b4 {[%clk 0:01:25]}  h3 {[%clk 0:00:44]} 37. Rc5 {[%clk 0:01:25]}  Kf6 {[%clk 0:00:38]} 38. a6 {[%clk 0:01:22]}  Kg5 {[%clk 0:00:36]} 39. Rc8 {[%clk 0:01:15]}  Kh4 {[%clk 0:00:30]} 40. Rh8+ {[%clk 0:01:15]}  Kg3 {[%clk 0:00:30]} 41. b5 {[%clk 0:01:14]}  h2 {[%clk 0:00:29]} 42. a7 {[%clk 0:01:11]}  e5 {[%clk 0:00:17]} 43. Kb7 {[%clk 0:01:07]}  Kg2 {[%clk 0:00:05]} 44. b6 {[%clk 0:01:05]}  h1=Q {[%clk 0:00:05]} 45. Rxh1 {[%clk 0:01:05]}  Kxh1 {[%clk 0:00:06]} 46. a8=Q {[%clk 0:01:04]}  Rxa8 {[%clk 0:00:05]} 47. Kxa8 {[%clk 0:01:05]}  f4 {[%clk 0:00:06]} 48. exf4 {[%clk 0:01:04]}  exf4 {[%clk 0:00:07]} 49. b7 {[%clk 0:01:04]}  Kg2 {[%clk 0:00:08]} 50. b8=Q {[%clk 0:01:04]}  Kxf3 {[%clk 0:00:09]} 51. Ka7 {[%clk 0:01:01]}  Kg3 {[%clk 0:00:10]} 52. Kb6 {[%clk 0:01:00]}  Kg4 {[%clk 0:00:08]} 53. Kc5 {[%clk 0:01:00]}  f3 {[%clk 0:00:09]} 54. Qh2 {[%clk 0:01:00]}  f5 {[%clk 0:00:08]} 55. Kd5 {[%clk 0:01:00]}  f4 {[%clk 0:00:09]} 1-0


[Site "https://www.chess.com"]

[Event "Titled Tuesday Blitz July 26 Late 2022"]
[White "Sarana, Alexey"]
[Black "Hjartarson, Johann"]
[WhiteFideId "24133795"]
[BlackFideId "2300044"]
[WhiteElo "2666"]
[BlackElo "2458"]
[Result "1-0"]
[Round "02"]
[TimeControl "180+1"]
[Date "2022.07.26"]
[WhiteClock "0:00:29"]
[BlackClock "0:00:01"]

1. c4 {[%clk 0:03:00]}  e5 {[%clk 0:02:59]} 2. Nc3 {[%clk 0:02:59]}  Nf6 {[%clk 0:02:59]} 3. Nf3 {[%clk 0:02:59]}  Nc6 {[%clk 0:02:59]} 4. g3 {[%clk 0:02:58]}  Nd4 {[%clk 0:02:59]} 5. Bg2 {[%clk 0:02:56]}  Nxf3+ {[%clk 0:02:59]} 6. Bxf3 {[%clk 0:02:57]}  Bb4 {[%clk 0:02:58]} 7. O-O {[%clk 0:02:55]}  Bxc3 {[%clk 0:02:55]} 8. bxc3 {[%clk 0:02:54]}  O-O {[%clk 0:02:54]} 9. c5 {[%clk 0:02:52]}  Re8 {[%clk 0:02:51]} 10. d4 {[%clk 0:02:51]}  e4 {[%clk 0:02:48]} 11. Bg2 {[%clk 0:02:51]}  h6 {[%clk 0:02:48]} 12. a4 {[%clk 0:02:49]}  b6 {[%clk 0:02:47]} 13. a5 {[%clk 0:02:40]}  bxc5 {[%clk 0:02:42]} 14. dxc5 {[%clk 0:02:41]}  Bb7 {[%clk 0:02:41]} 15. Qd4 {[%clk 0:02:40]}  Bc6 {[%clk 0:02:40]} 16. c4 {[%clk 0:02:38]}  Re6 {[%clk 0:02:37]} 17. Bf4 {[%clk 0:02:36]}  Nh5 {[%clk 0:02:31]} 18. Be3 {[%clk 0:02:34]}  Qe7 {[%clk 0:02:30]} 19. a6 {[%clk 0:02:33]}  f5 {[%clk 0:02:23]} 20. Rfb1 {[%clk 0:02:26]}  Rf8 {[%clk 0:02:23]} 21. Rb7 {[%clk 0:02:20]}  Bxb7 {[%clk 0:02:16]} 22. axb7 {[%clk 0:02:21]}  a6 {[%clk 0:02:16]} 23. Rb1 {[%clk 0:01:28]}  Rb8 {[%clk 0:02:11]} 24. Qd5 {[%clk 0:01:21]}  g6 {[%clk 0:01:52]} 25. c6 {[%clk 0:01:19]}  dxc6 {[%clk 0:01:47]} 26. Qa5 {[%clk 0:01:18]}  c5 {[%clk 0:01:04]} 27. Bxc5 {[%clk 0:01:18]}  Qd7 {[%clk 0:01:04]} 28. Ba7 {[%clk 0:01:17]}  Rb6 {[%clk 0:01:04]} 29. Bxb6 {[%clk 0:01:09]}  Rxb7 {[%clk 0:01:02]} 30. c5 {[%clk 0:01:08]}  cxb6 {[%clk 0:00:46]} 31. Qxa6 {[%clk 0:01:07]}  Nf6 {[%clk 0:00:35]} 32. Rxb6 {[%clk 0:00:59]}  Ra7 {[%clk 0:00:21]} 33. Qc4+ {[%clk 0:00:53]}  Qd5 {[%clk 0:00:21]} 34. Qxd5+ {[%clk 0:00:41]}  Nxd5 {[%clk 0:00:21]} 35. Rxg6+ {[%clk 0:00:42]}  Kf7 {[%clk 0:00:17]} 36. Rxh6 {[%clk 0:00:41]}  Ra1+ {[%clk 0:00:17]} 37. Bf1 {[%clk 0:00:41]}  Nc3 {[%clk 0:00:14]} 38. Kg2 {[%clk 0:00:41]}  Ke7 {[%clk 0:00:11]} 39. c6 {[%clk 0:00:40]}  Nd5 {[%clk 0:00:10]} 40. h4 {[%clk 0:00:40]}  Rc1 {[%clk 0:00:09]} 41. e3 {[%clk 0:00:40]}  Nf6 {[%clk 0:00:08]} 42. Bb5 {[%clk 0:00:40]}  Ng4 {[%clk 0:00:07]} 43. Rh7+ {[%clk 0:00:32]}  Kd6 {[%clk 0:00:05]} 44. Rd7+ {[%clk 0:00:32]}  Kc5 {[%clk 0:00:05]} 45. Be2 {[%clk 0:00:28]}  Ne5 {[%clk 0:00:05]} 46. c7 {[%clk 0:00:28]}  Kb6 {[%clk 0:00:04]} 47. Rd5 {[%clk 0:00:28]}  Nd3 {[%clk 0:00:01]} 48. Bxd3 {[%clk 0:00:28]}  exd3 {[%clk 0:00:01]} 49. Rxd3 {[%clk 0:00:29]} 1-0


[Site "https://www.chess.com"]

[Event "Titled Tuesday Blitz July 26 Late 2022"]
[White "Schekachikhin, Maksim"]
[Black "Abdrlauf, Elham"]
[WhiteFideId "24177830"]
[BlackFideId "1533533"]
[WhiteElo "2239"]
[BlackElo "2429"]
[Result "0-1"]
[Round "02"]
[TimeControl "180+1"]
[Date "2022.07.26"]
[WhiteClock "0:00:47"]
[BlackClock "0:00:04"]

1. d4 {[%clk 0:02:59]}  Nf6 {[%clk 0:02:59]} 2. c4 {[%clk 0:02:59]}  e6 {[%clk 0:02:58]} 3. Nc3 {[%clk 0:03:00]}  d5 {[%clk 0:02:56]} 4. Bg5 {[%clk 0:02:58]}  Be7 {[%clk 0:02:55]} 5. e3 {[%clk 0:02:58]}  O-O {[%clk 0:02:55]} 6. Qc2 {[%clk 0:02:58]}  Nbd7 {[%clk 0:02:54]} 7. Nf3 {[%clk 0:02:57]}  h6 {[%clk 0:02:49]} 8. Bh4 {[%clk 0:02:56]}  c5 {[%clk 0:02:49]} 9. cxd5 {[%clk 0:02:49]}  Nxd5 {[%clk 0:02:42]} 10. Bxe7 {[%clk 0:02:47]}  Qxe7 {[%clk 0:02:42]} 11. Nxd5 {[%clk 0:02:47]}  exd5 {[%clk 0:02:43]} 12. dxc5 {[%clk 0:02:46]}  Nxc5 {[%clk 0:02:44]} 13. Be2 {[%clk 0:02:45]}  Be6 {[%clk 0:02:39]} 14. O-O {[%clk 0:02:45]}  Rac8 {[%clk 0:02:39]} 15. Rac1 {[%clk 0:02:43]}  b6 {[%clk 0:02:21]} 16. Nd4 {[%clk 0:02:41]}  Bd7 {[%clk 0:02:18]} 17. Bf3 {[%clk 0:02:38]}  Qe5 {[%clk 0:02:10]} 18. Qd2 {[%clk 0:02:34]}  Ne4 {[%clk 0:02:07]} 19. Bxe4 {[%clk 0:02:24]}  dxe4 {[%clk 0:02:07]} 20. Rxc8 {[%clk 0:02:23]}  Rxc8 {[%clk 0:02:03]} 21. Rc1 {[%clk 0:02:24]}  Re8 {[%clk 0:01:56]} 22. Ne2 {[%clk 0:02:09]}  Be6 {[%clk 0:01:53]} 23. a3 {[%clk 0:02:08]}  Bg4 {[%clk 0:01:49]} 24. Nf4 {[%clk 0:01:59]}  g5 {[%clk 0:01:37]} 25. Ne2 {[%clk 0:01:58]}  Bxe2 {[%clk 0:01:36]} 26. Qxe2 {[%clk 0:01:58]}  Kg7 {[%clk 0:01:35]} 27. Qd2 {[%clk 0:01:57]}  f6 {[%clk 0:01:29]} 28. g3 {[%clk 0:01:54]}  Re7 {[%clk 0:01:27]} 29. Rc8 {[%clk 0:01:52]}  Qe6 {[%clk 0:00:40]} 30. Qd8 {[%clk 0:01:49]}  Kg6 {[%clk 0:00:40]} 31. b4 {[%clk 0:01:28]}  Kh5 {[%clk 0:00:34]} 32. Kg2 {[%clk 0:01:27]}  Rd7 {[%clk 0:00:24]} 33. Qe8+ {[%clk 0:01:24]}  Qxe8 {[%clk 0:00:24]} 34. Rxe8 {[%clk 0:01:25]}  f5 {[%clk 0:00:24]} 35. h3 {[%clk 0:01:22]}  Rd3 {[%clk 0:00:12]} 36. a4 {[%clk 0:01:21]}  Ra3 {[%clk 0:00:11]} 37. g4+ {[%clk 0:01:13]}  fxg4 {[%clk 0:00:11]} 38. hxg4+ {[%clk 0:01:14]}  Kxg4 {[%clk 0:00:11]} 39. Rxe4+ {[%clk 0:01:02]}  Kf5 {[%clk 0:00:11]} 40. Rd4 {[%clk 0:00:57]}  Rxa4 {[%clk 0:00:05]} 41. Kf3 {[%clk 0:00:53]}  a5 {[%clk 0:00:04]} 42. Rd6 {[%clk 0:00:53]}  Rxb4 {[%clk 0:00:04]} 43. Rxh6 {[%clk 0:00:53]}  a4 {[%clk 0:00:04]} 44. e4+ {[%clk 0:00:53]}  Ke5 {[%clk 0:00:04]} 45. Rg6 {[%clk 0:00:53]}  a3 {[%clk 0:00:04]} 46. Rxg5+ {[%clk 0:00:53]}  Ke6 {[%clk 0:00:04]} 47. Rg8 {[%clk 0:00:49]}  b5 {[%clk 0:00:03]} 48. Rg1 {[%clk 0:00:48]}  a2 {[%clk 0:00:02]} 49. Ra1 {[%clk 0:00:48]}  Rb2 {[%clk 0:00:03]} 50. Ke3 {[%clk 0:00:47]}  b4 {[%clk 0:00:03]} 51. Kd3 {[%clk 0:00:47]}  b3 {[%clk 0:00:04]} 0-1


[Site "https://www.chess.com"]

[Event "Titled Tuesday Blitz July 26 Late 2022"]
[White "Soham Kamotra"]
[Black "Hafiz, Arif Abdul"]
[WhiteFideId "46647490"]
[BlackFideId "7104227"]
[WhiteElo "2082"]
[BlackElo "2198"]
[Result "0-1"]
[Round "02"]
[TimeControl "180+1"]
[Date "2022.07.26"]
[WhiteClock "0:00:01"]
[BlackClock "0:00:07"]

1. Nf3 {[%clk 0:03:00]}  Nc6 {[%clk 0:03:00]} 2. d4 {[%clk 0:02:58]}  d5 {[%clk 0:03:00]} 3. Bf4 {[%clk 0:02:58]}  Bf5 {[%clk 0:02:59]} 4. e3 {[%clk 0:02:56]}  e6 {[%clk 0:02:59]} 5. Be2 {[%clk 0:02:53]}  Bd6 {[%clk 0:03:00]} 6. O-O {[%clk 0:02:53]}  Bxf4 {[%clk 0:02:56]} 7. exf4 {[%clk 0:02:54]}  Nf6 {[%clk 0:02:57]} 8. c3 {[%clk 0:02:47]}  O-O {[%clk 0:02:55]} 9. Nbd2 {[%clk 0:02:47]}  Ne7 {[%clk 0:02:52]} 10. Re1 {[%clk 0:02:46]}  c5 {[%clk 0:02:52]} 11. dxc5 {[%clk 0:02:35]}  Qc7 {[%clk 0:02:51]} 12. g3 {[%clk 0:02:36]}  Qxc5 {[%clk 0:02:51]} 13. Nb3 {[%clk 0:02:35]}  Qc7 {[%clk 0:02:49]} 14. Ne5 {[%clk 0:02:32]}  h6 {[%clk 0:02:29]} 15. Nd4 {[%clk 0:02:29]}  a6 {[%clk 0:02:23]} 16. a4 {[%clk 0:02:24]}  Bh7 {[%clk 0:02:15]} 17. Bf3 {[%clk 0:01:55]}  Nc6 {[%clk 0:02:14]} 18. h4 {[%clk 0:01:46]}  Rab8 {[%clk 0:02:04]} 19. Kg2 {[%clk 0:01:24]}  Rfc8 {[%clk 0:02:00]} 20. Re2 {[%clk 0:01:18]}  Nxe5 {[%clk 0:02:00]} 21. fxe5 {[%clk 0:01:15]}  Nd7 {[%clk 0:01:57]} 22. Qe1 {[%clk 0:01:14]}  b5 {[%clk 0:01:57]} 23. axb5 {[%clk 0:01:09]}  axb5 {[%clk 0:01:58]} 24. Re3 {[%clk 0:01:09]}  b4 {[%clk 0:01:58]} 25. Rc1 {[%clk 0:00:51]}  Qb6 {[%clk 0:01:53]} 26. Be2 {[%clk 0:00:50]}  Nc5 {[%clk 0:01:46]} 27. cxb4 {[%clk 0:00:45]}  Na4 {[%clk 0:01:22]} 28. Rxc8+ {[%clk 0:00:31]}  Rxc8 {[%clk 0:01:23]} 29. Qd2 {[%clk 0:00:31]}  Be4+ {[%clk 0:01:15]} 30. f3 {[%clk 0:00:31]}  Bg6 {[%clk 0:01:14]} 31. Bd1 {[%clk 0:00:31]}  Rc4 {[%clk 0:01:13]} 32. Bxa4 {[%clk 0:00:20]}  Rxd4 {[%clk 0:01:10]} 33. Qf2 {[%clk 0:00:19]}  Rxb4 {[%clk 0:01:09]} 34. b3 {[%clk 0:00:16]}  Rd4 {[%clk 0:00:59]} 35. Rc3 {[%clk 0:00:15]}  Qb4 {[%clk 0:00:58]} 36. Qe3 {[%clk 0:00:14]}  Rd1 {[%clk 0:00:56]} 37. Qc5 {[%clk 0:00:14]}  Qxc5 {[%clk 0:00:42]} 38. Rxc5 {[%clk 0:00:15]}  Rd2+ {[%clk 0:00:43]} 39. Kg1 {[%clk 0:00:13]}  Rb2 {[%clk 0:00:42]} 40. Rc8+ {[%clk 0:00:10]}  Kh7 {[%clk 0:00:42]} 41. Rd8 {[%clk 0:00:10]}  h5 {[%clk 0:00:41]} 42. f4 {[%clk 0:00:10]}  Be4 {[%clk 0:00:41]} 43. Be8 {[%clk 0:00:08]}  Rxb3 {[%clk 0:00:28]} 44. Bxf7 {[%clk 0:00:08]}  Rxg3+ {[%clk 0:00:28]} 45. Kh2 {[%clk 0:00:06]}  Rg4 {[%clk 0:00:28]} 46. Bxe6 {[%clk 0:00:07]}  Rxf4 {[%clk 0:00:27]} 47. Kg3 {[%clk 0:00:05]}  Rf3+ {[%clk 0:00:27]} 48. Kh2 {[%clk 0:00:06]}  Rd3 {[%clk 0:00:27]} 49. Bf7 {[%clk 0:00:04]}  Bf5 {[%clk 0:00:17]} 50. Rxd5 {[%clk 0:00:04]}  Rh3+ {[%clk 0:00:17]} 51. Kg2 {[%clk 0:00:04]}  Rxh4 {[%clk 0:00:17]} 52. Kg3 {[%clk 0:00:04]}  Rg4+ {[%clk 0:00:17]} 53. Kf2 {[%clk 0:00:04]}  g6 {[%clk 0:00:15]} 54. e6 {[%clk 0:00:04]}  Re4 {[%clk 0:00:16]} 55. Kf3 {[%clk 0:00:04]}  Kg7 {[%clk 0:00:15]} 56. Rd6 {[%clk 0:00:04]}  Re5 {[%clk 0:00:11]} 57. Kf4 {[%clk 0:00:03]}  Re4+ {[%clk 0:00:12]} 58. Kf3 {[%clk 0:00:04]}  h4 {[%clk 0:00:12]} 59. Ra6 {[%clk 0:00:03]}  h3 {[%clk 0:00:12]} 60. Ra7 {[%clk 0:00:03]}  Kf6 {[%clk 0:00:12]} 61. Bg8 {[%clk 0:00:03]}  Re5 {[%clk 0:00:11]} 62. Rh7 {[%clk 0:00:03]}  Kg5 {[%clk 0:00:08]} 63. e7 {[%clk 0:00:01]}  Bg4+ {[%clk 0:00:08]} 64. Kf2 {[%clk 0:00:01]}  Kf4 {[%clk 0:00:07]} 0-1


[Site "https://www.chess.com"]

[Event "Titled Tuesday Blitz July 26 Late 2022"]
[White "Thiel, Thomas"]
[Black "Nazaretyan, Tigran"]
[WhiteFideId "4615964"]
[BlackFideId "24162345"]
[WhiteElo "2308"]
[BlackElo "2179"]
[Result "0-1"]
[Round "02"]
[TimeControl "180+1"]
[Date "2022.07.27"]
[WhiteClock "0:00:03"]
[BlackClock "0:00:35"]

1. e4 {[%clk 0:03:00]}  c5 {[%clk 0:02:59]} 2. Nc3 {[%clk 0:02:59]}  Nc6 {[%clk 0:02:57]} 3. Bb5 {[%clk 0:02:58]}  Nd4 {[%clk 0:02:57]} 4. Bc4 {[%clk 0:02:58]}  e6 {[%clk 0:02:56]} 5. Nge2 {[%clk 0:02:57]}  Qc7 {[%clk 0:02:56]} 6. O-O {[%clk 0:02:56]}  Nf6 {[%clk 0:02:55]} 7. d3 {[%clk 0:02:54]}  a6 {[%clk 0:02:53]} 8. f4 {[%clk 0:02:52]}  b5 {[%clk 0:02:48]} 9. Bb3 {[%clk 0:02:50]}  Nxe2+ {[%clk 0:02:36]} 10. Qxe2 {[%clk 0:02:44]}  Bb7 {[%clk 0:02:31]} 11. e5 {[%clk 0:02:40]}  Nd5 {[%clk 0:02:27]} 12. Nxd5 {[%clk 0:02:40]}  exd5 {[%clk 0:02:27]} 13. c4 {[%clk 0:02:38]}  dxc4 {[%clk 0:02:26]} 14. dxc4 {[%clk 0:02:38]}  Be7 {[%clk 0:02:24]} 15. Bc2 {[%clk 0:02:19]}  Qc6 {[%clk 0:02:19]} 16. Bd3 {[%clk 0:01:58]}  b4 {[%clk 0:02:15]} 17. Bd2 {[%clk 0:01:46]}  O-O {[%clk 0:01:58]} 18. Rae1 {[%clk 0:01:42]}  d6 {[%clk 0:01:53]} 19. Be4 {[%clk 0:01:36]}  Qxe4 {[%clk 0:01:48]} 20. Qxe4 {[%clk 0:01:37]}  Bxe4 {[%clk 0:01:48]} 21. Rxe4 {[%clk 0:01:37]}  Rad8 {[%clk 0:01:47]} 22. e6 {[%clk 0:01:34]}  fxe6 {[%clk 0:01:43]} 23. Rxe6 {[%clk 0:01:32]}  Bf6 {[%clk 0:01:43]} 24. b3 {[%clk 0:01:29]}  Kf7 {[%clk 0:01:42]} 25. f5 {[%clk 0:01:12]}  g6 {[%clk 0:01:34]} 26. Bh6 {[%clk 0:01:03]}  Rg8 {[%clk 0:01:31]} 27. Bf4 {[%clk 0:00:32]}  gxf5 {[%clk 0:01:17]} 28. Rxd6 {[%clk 0:00:30]}  Rxd6 {[%clk 0:01:17]} 29. Bxd6 {[%clk 0:00:30]}  Bd4+ {[%clk 0:01:17]} 30. Kh1 {[%clk 0:00:29]}  Ke6 {[%clk 0:01:17]} 31. Bf4 {[%clk 0:00:28]}  h5 {[%clk 0:01:12]} 32. g3 {[%clk 0:00:27]}  a5 {[%clk 0:01:09]} 33. h4 {[%clk 0:00:26]}  a4 {[%clk 0:01:08]} 34. Kg2 {[%clk 0:00:24]}  Ra8 {[%clk 0:01:06]} 35. Re1+ {[%clk 0:00:22]}  Kf7 {[%clk 0:01:03]} 36. Be3 {[%clk 0:00:20]}  axb3 {[%clk 0:00:58]} 37. axb3 {[%clk 0:00:21]}  Ra3 {[%clk 0:00:48]} 38. Bxd4 {[%clk 0:00:20]}  cxd4 {[%clk 0:00:48]} 39. Rd1 {[%clk 0:00:19]}  Rxb3 {[%clk 0:00:46]} 40. Rxd4 {[%clk 0:00:18]}  Rc3 {[%clk 0:00:46]} 41. c5 {[%clk 0:00:18]}  b3 {[%clk 0:00:46]} 42. Rb4 {[%clk 0:00:18]}  Ke6 {[%clk 0:00:45]} 43. Rb6+ {[%clk 0:00:12]}  Kd5 {[%clk 0:00:45]} 44. c6 {[%clk 0:00:12]}  Kc5 {[%clk 0:00:44]} 45. Rb8 {[%clk 0:00:07]}  Kd6 {[%clk 0:00:40]} 46. Rb6 {[%clk 0:00:04]}  Kc7 {[%clk 0:00:40]} 47. Rb5 {[%clk 0:00:03]}  Kxc6 {[%clk 0:00:38]} 48. Rb8 {[%clk 0:00:03]}  Kd5 {[%clk 0:00:35]} 0-1


[Site "https://www.chess.com"]

[Event "Titled Tuesday Blitz July 26 Late 2022"]
[White "Vasquez Schroeder, Rodrigo"]
[Black "Baches Garcia, Guillermo"]
[WhiteFideId "3400042"]
[BlackFideId "2209764"]
[WhiteElo "2567"]
[BlackElo "2526"]
[Result "1-0"]
[Round "02"]
[TimeControl "180+1"]
[Date "2022.07.26"]
[WhiteClock "0:00:31"]
[BlackClock "0:00:01"]

1. e4 {[%clk 0:03:00]}  c5 {[%clk 0:03:00]} 2. Nf3 {[%clk 0:03:00]}  d6 {[%clk 0:03:00]} 3. d4 {[%clk 0:03:00]}  cxd4 {[%clk 0:03:01]} 4. Nxd4 {[%clk 0:03:01]}  Nf6 {[%clk 0:03:02]} 5. Nc3 {[%clk 0:03:01]}  Nc6 {[%clk 0:03:03]} 6. Bg5 {[%clk 0:03:00]}  e6 {[%clk 0:03:03]} 7. Qd2 {[%clk 0:03:00]}  h6 {[%clk 0:03:04]} 8. Bxf6 {[%clk 0:02:57]}  gxf6 {[%clk 0:03:04]} 9. O-O-O {[%clk 0:02:56]}  a6 {[%clk 0:03:05]} 10. f4 {[%clk 0:02:55]}  Bd7 {[%clk 0:03:04]} 11. Kb1 {[%clk 0:02:48]}  Qb6 {[%clk 0:03:04]} 12. Nb3 {[%clk 0:02:46]}  O-O-O {[%clk 0:03:03]} 13. Be2 {[%clk 0:02:46]}  h5 {[%clk 0:03:03]} 14. Rhf1 {[%clk 0:02:45]}  Be7 {[%clk 0:03:03]} 15. Rf3 {[%clk 0:02:45]}  Rdg8 {[%clk 0:03:03]} 16. Bf1 {[%clk 0:02:45]}  h4 {[%clk 0:03:03]} 17. Rh3 {[%clk 0:02:42]}  Kb8 {[%clk 0:02:56]} 18. Qe1 {[%clk 0:02:40]}  Rg4 {[%clk 0:02:41]} 19. g3 {[%clk 0:02:34]}  Qg1 {[%clk 0:02:10]} 20. Qe2 {[%clk 0:02:17]}  Rgg8 {[%clk 0:01:48]} 21. Bg2 {[%clk 0:02:09]}  Qb6 {[%clk 0:01:43]} 22. Rxh4 {[%clk 0:02:02]}  Rxh4 {[%clk 0:01:41]} 23. gxh4 {[%clk 0:02:03]}  Na5 {[%clk 0:01:35]} 24. h5 {[%clk 0:01:59]}  Nxb3 {[%clk 0:01:25]} 25. axb3 {[%clk 0:01:58]}  Qc5 {[%clk 0:01:22]} 26. Bf3 {[%clk 0:01:57]}  Bf8 {[%clk 0:01:14]} 27. Bg4 {[%clk 0:01:47]}  Bh6 {[%clk 0:01:03]} 28. Rf1 {[%clk 0:01:44]}  b5 {[%clk 0:00:50]} 29. h3 {[%clk 0:01:36]}  Kc7 {[%clk 0:00:41]} 30. f5 {[%clk 0:01:31]}  Qe5 {[%clk 0:00:36]} 31. b4 {[%clk 0:01:27]}  Kd8 {[%clk 0:00:33]} 32. Qf2 {[%clk 0:01:16]}  Ke7 {[%clk 0:00:27]} 33. fxe6 {[%clk 0:01:09]}  fxe6 {[%clk 0:00:26]} 34. Qa7 {[%clk 0:01:09]}  Rd8 {[%clk 0:00:17]} 35. Qxa6 {[%clk 0:01:03]}  Bd2 {[%clk 0:00:17]} 36. Qa3 {[%clk 0:00:47]}  Rc8 {[%clk 0:00:14]} 37. Rf3 {[%clk 0:00:47]}  Qh2 {[%clk 0:00:09]} 38. Qa7 {[%clk 0:00:41]}  Qh1+ {[%clk 0:00:04]} 39. Ka2 {[%clk 0:00:39]}  Bxc3 {[%clk 0:00:04]} 40. Rxc3 {[%clk 0:00:35]}  Rxc3 {[%clk 0:00:04]} 41. bxc3 {[%clk 0:00:36]}  Qc1 {[%clk 0:00:03]} 42. Qf2 {[%clk 0:00:33]}  Bc6 {[%clk 0:00:01]} 43. Bf3 {[%clk 0:00:31]} 1-0


[Site "https://www.chess.com"]